fUSD/lending_fUSD_20241121
["ID","MTS","AMOUNT","RATE_DAILY","PERIOD"]
[342860866,1732187487771,-500.0,0.00041369,18]
[342860867,1732187487781,-500.0,0.00041369,18]
[342860868,1732187487791,-500.0,0.00041369,18]
[342860869,1732187487801,-500.0,0.00041369,18]
[342860870,1732187487811,-500.0,0.00041369,18]
[342860871,1732187487821,-500.0,0.00041369,18]
[342860872,1732187487831,-500.0,0.00041369,18]
[342860873,1732187487841,-500.0,0.00041369,18]
[342860874,1732187487851,-500.0,0.00041369,18]
[342860875,1732187487861,-154.589908,0.00041369,18]
[342860876,1732187487871,-1466.332919,0.00041369,18]
[342860877,1732187487881,-244.534283,0.00041369,18]
[342860878,1732187487891,-500.0,0.00041369,18]
[342860879,1732187487996,-500.0,0.00041369,18]
[342860880,1732187488007,-151.0,0.00041369,14]
[342860881,1732187488018,-500.0,0.00041369,18]
[342860882,1732187488028,-500.0,0.00041369,18]
[342860883,1732187488038,-500.0,0.00041369,18]
[342860884,1732187488049,-500.26588412,0.00041369,18]
[342860885,1732187488059,-500.0,0.00041369,18]
[342860886,1732187488068,-500.0,0.00041369,18]
[342860887,1732187488078,-500.0,0.00041369,18]
[342860888,1732187488088,-500.39549474,0.00041369,18]
[342860889,1732187488097,-500.0,0.00041369,18]
[342860890,1732187488107,-500.0,0.00041369,18]
[342860891,1732187488117,-500.0,0.00041369,18]
[342860892,1732187488127,-151.0,0.00041369,14]
[342860893,1732187488138,-500.0,0.00041369,18]
[342860894,1732187488148,-500.0,0.00041369,18]
[342860895,1732187488160,-500.0,0.00041369,18]
[342860896,1732187488171,-713.75,0.00041369,18]
[342860897,1732187488180,-500.0,0.00041369,18]
[342860898,1732187488190,-500.0,0.00041369,18]
[342860899,1732187488199,-500.0,0.00041369,18]
[342860900,1732187488212,-2038.94,0.00041369,18]
[342860901,1732187488225,-801.96,0.00041369,18]
[342860902,1732187488237,-644.42,0.00041369,18]
[342860903,1732187488247,-579.8,0.00041369,18]
[342860904,1732187488256,-500.0,0.00041369,18]
[342860905,1732187488266,-500.0,0.00041369,18]
[342860906,1732187488275,-500.0,0.00041369,18]
[342860907,1732187488283,-500.0,0.00041369,18]
[342860908,1732187488293,-500.0,0.00041369,18]
[342860909,1732187488302,-500.0,0.00041369,18]
[342860910,1732187488313,-1106.69,0.00041369,18]
[342860911,1732187488324,-1085.19,0.00041369,18]
[342860912,1732187488334,-1492.45,0.00041369,18]
[342860913,1732187488345,-500.0,0.00041369,18]
[342860914,1732187488355,-500.0,0.00041369,18]
[342860915,1732187488366,-500.0,0.00041369,18]
[342860916,1732187488379,-775.0,0.00041369,18]
[342860917,1732187488389,-78.5422954,0.00041369,18]
[342860923,1732187950908,-150.0,0.00015342,2]
[342860955,1732188349291,-5.28,0.00015342,2]
[342860956,1732188349313,-3183.53603457,0.00024832,2]
[342860957,1732188349335,-500.0,0.00024932,2]
[342860958,1732188349357,-1939.33291109,0.00025859,2]
[342860959,1732188353577,150.0,6.94e-05,2]
[342860960,1732188353602,683.48094184,6.94e-05,2]
[342860961,1732188433089,-150.0,0.00016862,2]
[342860962,1732188433112,-247.72825918,0.00025,2]
[342860963,1732188433133,-800.0,0.00026986,120]
[342860964,1732188433153,-855.0485,0.00027771,2]
[342860965,1732188433174,-270.791506,0.00028132,2]
[342860966,1732188433194,-153.90519587,0.00028316,2]
[342860967,1732188433214,-574.14452975,0.0002856,5]
[342860968,1732188433237,-1192.693,0.00028617,20]
[342860969,1732188433259,-8719.55732985,0.00028617,10]
[342860970,1732188439149,-1477.57267015,0.00028617,10]
[342860971,1732188439171,-210.64,0.00028617,2]
[342860972,1732188439194,-1320.7498968,0.00028617,2]
[342860973,1732188454128,-1314.70949895,0.000249,2]
[342860987,1732188545126,-202.0,0.00018,5]
[342860988,1732188545149,-150.0,0.0001854,2]
[342860989,1732188545171,-410.78075325,0.00027,2]
[342860990,1732188545193,-1871.8374315,0.00027,120]
[342860991,1732188545529,-300.0,0.00028616,2]
[342860992,1732188545551,-200.0,0.00028616,30]
[342860993,1732188545576,-8098.6301032,0.00028617,2]
[342860994,1732188545598,-167.13,0.00028993,2]
[342860995,1732188545620,-151.0,0.0003,120]
[342860996,1732188545642,-1344.37,0.0003,2]
[342860997,1732188545664,-1880.92320073,0.0003,30]
[342860998,1732188545690,-162.78,0.00030195,2]
[342860999,1732188545712,-420.0,0.00030886,2]
[342861003,1732188572096,-280.0,0.00031478,30]
[342861004,1732188572117,-3278.1727136,0.000319,2]
[342861005,1732188572139,-9007.76957301,0.00032,90]
[342861006,1732188574105,-7509.00915813,0.00032,90]
[342861010,1732188581317,250.0,0.00031,2]
[342861046,1732188632660,-7371.06129011,0.00032,90]
[342861047,1732188632673,-595.90468528,0.00032,90]
[342861048,1732188632691,-10482.16501476,0.00032,90]
[342861049,1732188632701,-631.62901707,0.00032,90]
[342861050,1732188632712,-1312.8324079,0.00032,90]
[342861051,1732188632722,-521.88767382,0.00032,90]
[342861052,1732188632744,-4081.22546642,0.00032,90]
[342861053,1732188632753,-300.0,0.00033,2]
[342861054,1732188632762,-7233.62252785,0.000345,5]
[342861056,1732188632773,-1354.37747215,0.000345,5]
[342861057,1732188632782,-1000.0,0.00034521,2]
[342861059,1732188632791,-1148.8527,0.0003482,2]
[342861061,1732188632800,-150.99,0.0003482,30]
[342861062,1732188632809,-385.71,0.00034909,10]
[342861064,1732188632818,-252.07318351,0.00034919,2]
[342861066,1732188632827,-2238.26,0.00034919,10]
[342861067,1732188632836,-300.0,0.00034919,2]
[342861069,1732188632845,-19561.93792006,0.00034919,2]
[342861070,1732188632854,-4109.13762091,0.00034919,2]
[342861072,1732188632867,-30705.55213123,0.00034919,2]
[342861073,1732188633000,-758.99867757,0.00034919,2]
[342861074,1732188633022,-272.44284107,0.00034919,2]
[342861075,1732188633278,-234.28332232,0.00034919,2]
[342861076,1732188633287,-1131.60978562,0.00034919,120]
[342861077,1732188633297,-280.98219687,0.00034919,120]
[342861078,1732188633306,-36519.74197451,0.00034919,4]
[342861079,1732188633326,-262.55656545,0.00034919,4]
[342861080,1732188633337,-2519.84998623,0.00034919,4]
[342861081,1732188633411,-2891.52000036,0.00034919,4]
[342861088,1732188637971,-321.43,0.00034909,10]
[342861089,1732188637981,-522.01863323,0.00034919,4]
[342861090,1732188637992,-1458.49931398,0.00034919,4]
[342861091,1732188638003,-35041.82523894,0.00034919,4]
[342861092,1732188638015,-378.61160896,0.00034919,4]
[342861093,1732188638033,-1220.42500006,0.00034919,4]
[342861094,1732188638044,-1206.10171124,0.00034919,4]
[342861095,1732188638054,-300.0,0.00034919,2]
[342861096,1732188638063,-6248.49084974,0.00034919,120]
[342861097,1732188638078,-4297.1576668,0.00034919,120]
[342861098,1732188638087,-19796.42576855,0.00035,90]
[342861099,1732188638105,-5747.75237768,0.00035,90]
[342861100,1732188638114,-2607.70937332,0.00035,2]
[342861101,1732188638128,-10389.64147959,0.00035,2]
[342861102,1732188638138,-500.0,0.00035,5]
[342861103,1732188638147,-500.0,0.00035,5]
[342861104,1732188638156,-350.0,0.00035,2]
[342861105,1732188638166,-500.0,0.00035,2]
[342861106,1732188638176,-20953.10369685,0.00035438,2]
[342861107,1732188638224,-2946.89630315,0.00035438,2]
[342861108,1732188638234,-250.0,0.00035469,120]
[342861109,1732188638244,-549.71,0.00035704,120]
[342861110,1732188638253,-1000.0,0.00035798,2]
[342861111,1732188638262,-1000.0,0.00035918,2]
[342861112,1732188638271,-715.46,0.00035928,2]
[342861113,1732188638281,-250.0,0.00036008,2]
[342861114,1732188638291,-855.0485,0.00036374,2]
[342861115,1732188638303,-350.5,0.00036908,120]
[342861116,1732188638312,-1000.0,0.00037075,2]
[342861117,1732188638321,-168.72,0.00037082,2]
[342861118,1732188638330,-550.07,0.00037098,2]
[342861119,1732188638340,-250.0,0.00037427,2]
[342861120,1732188638349,-200.0,0.00037463,2]
[342861121,1732188638358,-1852.42,0.00037576,2]
[342861122,1732188638367,-150.24,0.00037602,2]
[342861123,1732188638377,-159.66,0.00037612,120]
[342861124,1732188638387,-1054.0,0.0003771,5]
[342861125,1732188638397,-1131.60978562,0.00038,120]
[342861126,1732188638406,-280.98219687,0.00038,120]
[342861127,1732188638416,-1000.0,0.00038352,2]
[342861128,1732188638426,-153.0,0.00038472,2]
[342861129,1732188638437,-153.0,0.00038472,2]
[342861130,1732188638447,-153.0,0.00038472,2]
[342861131,1732188638456,-153.0,0.00038472,2]
[342861132,1732188638466,-153.0,0.00038472,2]
[342861133,1732188638475,-153.0,0.00038472,2]
[342861134,1732188638484,-250.0,0.00038499,2]
[342861135,1732188638493,-433.33,0.00038658,2]
[342861136,1732188638506,-4417.68762055,0.00038853,15]
[342861137,1732188638516,-16424.46514403,0.00038893,15]
[342861138,1732188638525,-42501.0096,0.00038953,2]
[342861139,1732188638534,-168.24,0.00039142,2]
[342861140,1732188638546,-15715.89560136,0.000393,2]
[342861142,1732188638555,-4417.68762048,0.00039303,15]
[342861143,1732188638565,-16424.46514395,0.0003934,15]
[342861144,1732188638574,-180.12,0.00039494,120]
[342861145,1732188638583,-164.95,0.00039494,2]
[342861146,1732188638595,-1000.0,0.0003963,2]
[342861147,1732188638604,-1054.0,0.00039695,5]
[342861148,1732188638614,-4417.68762048,0.00039752,15]
[342861149,1732188638623,-16424.46514395,0.00039786,15]
[342861150,1732188638635,-31277.03798412,0.000398,2]
[342861151,1732188638644,-89973.3733,0.000399,2]
[342861152,1732188638654,-13846.8871,0.000399,2]
[342861153,1732188638663,-4898.0600012,0.000399,21]
[342861154,1732188638672,-1401.02302968,0.0003999,120]
[342861155,1732188638681,-151.0,0.0004,120]
[342861156,1732188638691,-1131.60978562,0.0004,120]
[342861157,1732188638700,-280.98219687,0.0004,120]
[342861158,1732188638709,-26936.52742925,0.0004,20]
[342861159,1732188638720,-1680.95183296,0.0004,20]
[342861160,1732188638731,-4355.93366839,0.0004,20]
[342861161,1732188638742,-26.5870684,0.0004,20]
[342861162,1732188638752,-549.71,0.00040167,120]
[342861163,1732188638763,-421.24617707,0.00040202,15]
[342861164,1732188638790,-408.187,0.00040202,15]
[342861165,1732188638801,-3588.25444341,0.00040202,15]
[342861166,1732188638810,-16424.46514395,0.00040233,15]
[342861167,1732188638819,-1417.0,0.00040277,2]
[342861168,1732188638830,-500.0,0.00040369,7]
[342861169,1732188638839,-499.69,0.00040369,7]
[342861170,1732188638849,-500.0,0.00040369,7]
[342861171,1732188638859,-1000.0,0.00040408,2]
[342861172,1732188638868,-507.09067898,0.00040431,120]
[342861173,1732188638878,-721.7620166,0.0004054,4]
[342861174,1732188638888,-207.76809299,0.000406,14]
[342861175,1732188638900,-192.23190701,0.000406,14]
[342861176,1732188638909,-150.0,0.00040603,2]
[342861177,1732188638918,-147.13309299,0.00040603,2]
[342861183,1732188640015,-500.0,0.00040233,15]
[342861184,1732188640026,-2.86690701,0.00040603,2]
[342861185,1732188640036,-150.0,0.00040603,2]
[342861186,1732188640045,-150.0,0.00040603,2]
[342861187,1732188640056,-4417.68762048,0.00040652,15]
[342861188,1732188640065,-1188.81187979,0.0004068,15]
[342861189,1732188640077,-3427.41558904,0.0004068,15]
[342861190,1732188640088,-1107.65047626,0.0004068,15]
[342861191,1732188640100,-3679.10104831,0.0004068,15]
[342861192,1732188640234,-500.0,0.00038852,15]
[342861193,1732188640244,-2655.3930086,0.0004068,15]
[342861194,1732188640255,-1661.3625,0.0004068,15]
[342861195,1732188640266,-2704.73064195,0.0004068,15]
[342861196,1732188640275,-800.0,0.000407,14]
[342861197,1732188640284,-1200.0,0.000408,14]
[342861198,1732188640293,-2500.0,0.00040829,2]
[342861199,1732188640302,-2110.0,0.00040834,30]
[342861200,1732188640311,-200.0,0.0004087,58]
[342861201,1732188640320,-227.10514305,0.00040895,28]
[342861202,1732188640328,-729.0,0.000409,30]
[342861203,1732188640337,-1600.0,0.000409,14]
[342861204,1732188640347,-688.1,0.000409,30]
[342861205,1732188640355,-480.96,0.00040959,2]
[342861206,1732188640364,-1461.61128,0.0004096,39]
[342861207,1732188640373,-2083.0,0.00041,117]
[342861208,1732188640383,-159.75110453,0.00041073,5]
[342861209,1732188640392,-298.86632093,0.00041073,5]
[342861210,1732188640401,-957.32651,0.00041088,30]
[342861211,1732188640410,-157.0,0.00041095,5]
[342861212,1732188640419,-500.0,0.00041095,18]
[342861213,1732188640428,-500.0,0.00041095,18]
[342861214,1732188640437,-500.0,0.00041095,18]
[342861215,1732188640446,-500.0,0.00041095,18]
[342861216,1732188640455,-500.0,0.00041095,18]
[342861217,1732188640464,-500.0,0.00041095,18]
[342861218,1732188640474,-192.23078919,0.00041095,18]
[342861219,1732188640484,-679.3,0.00041095,18]
[342861220,1732188640493,-500.0,0.00041095,18]
[342861221,1732188640505,-500.0,0.00041095,18]
[342861222,1732188640515,-500.0,0.00041095,18]
[342861223,1732188640524,-734.51821035,0.00041095,18]
[342861233,1732188643355,-219.46,0.00038313,2]
[342861234,1732188643364,-482.61130696,0.00038852,15]
[342861235,1732188643374,-831.78,0.00038883,3]
[342861236,1732188643387,-500.0,0.0004054,4]
[342861237,1732188643396,-150.0,0.00041094,2]
[342861239,1732188643407,-128.16178965,0.00041095,18]
[342861241,1732188643417,-500.0,0.00041095,18]
[342861242,1732188643426,-623.68,0.00041095,18]
[342861243,1732188643435,-533.78937664,0.00041095,18]
[342861244,1732188643444,-623.74,0.00041095,18]
[342861245,1732188643454,-306.17202675,0.00041095,18]
[342861248,1732188643485,-1357.48,0.00038155,2]
[342861249,1732188643496,-3136.09797325,0.00041095,18]
[342861250,1732188643513,-500.0,0.00041095,18]
[342861251,1732188643526,-500.0,0.00041095,18]
[342861253,1732188643542,-500.0,0.00041095,18]
[342861254,1732188643555,-500.0,0.00041095,18]
[342861255,1732188643565,-500.0,0.00041095,18]
[342861256,1732188643575,-500.0,0.00041095,18]
[342861257,1732188643584,-676.81,0.00041095,18]
[342861258,1732188643594,-1528.4,0.00041095,7]
[342861259,1732188643605,-500.0,0.00041095,18]
[342861260,1732188643615,-500.0,0.00041095,18]
[342861261,1732188643625,-500.0,0.00041095,18]
[342861262,1732188643636,-524.67,0.00041095,18]
[342861263,1732188643646,-1286.94,0.00041095,18]
[342861264,1732188643656,-500.0,0.00041095,18]
[342861265,1732188643665,-500.0,0.00041095,18]
[342861266,1732188643675,-545.18,0.00041095,18]
[342861267,1732188643685,-500.0,0.00041095,18]
[342861268,1732188643695,-500.0,0.00041095,18]
[342861269,1732188643707,-514.40780314,0.00041095,18]
[342861270,1732188643717,-703.5,0.00041095,18]
[342861271,1732188643727,-500.0,0.00041095,18]
[342861272,1732188643736,-1281.75,0.00041095,18]
[342861273,1732188643746,-500.0,0.00041095,18]
[342861275,1732188643755,-655.95,0.00041095,18]
[342861277,1732188643764,-500.0,0.00041095,18]
[342861279,1732188643774,-500.0,0.00041095,18]
[342861281,1732188643782,-308.3057276,0.00041095,18]
[342861283,1732188643791,-500.0,0.00041095,18]
[342861285,1732188643801,-500.0,0.00041095,18]
[342861287,1732188643810,-500.0,0.00041095,18]
[342861289,1732188643819,-500.0,0.00041095,18]
[342861291,1732188643828,-976.13,0.00041095,18]
[342861293,1732188643837,-500.0,0.00041095,18]
[342861295,1732188643846,-500.0,0.00041095,18]
[342861297,1732188643855,-1337.06,0.00041095,18]
[342861299,1732188643865,-500.0,0.00041095,18]
[342861301,1732188643874,-1636.05,0.00041095,18]
[342861303,1732188643884,-568.97,0.00041095,18]
[342861305,1732188643894,-500.0,0.00041095,18]
[342861307,1732188643904,-500.0,0.00041095,18]
[342861309,1732188643913,-569.70860649,0.00041095,18]
[342861311,1732188643922,-1287.82,0.00041095,18]
[342861313,1732188643931,-500.0,0.00041095,18]
[342861315,1732188643941,-500.0,0.00041095,18]
[342861317,1732188643951,-579.01,0.00041095,18]
[342861318,1732188643959,-500.0,0.00041095,18]
[342861321,1732188643970,-500.0,0.00041095,18]
[342861322,1732188643979,-500.0,0.00041095,18]
[342861324,1732188643988,-500.0,0.00041095,18]
[342861327,1732188643998,-500.0,0.00041095,18]
[342861328,1732188644008,-289.00182811,0.00041095,18]
[342861330,1732188644017,-500.0,0.00041095,18]
[342861333,1732188644027,-500.0,0.00041095,18]
[342861335,1732188644037,-500.0,0.00041095,18]
[342861337,1732188644047,-500.0,0.00041095,18]
[342861339,1732188644056,-500.0,0.00041095,18]
[342861341,1732188644065,-605.61,0.00041095,18]
[342861343,1732188644075,-500.0,0.00041095,18]
[342861345,1732188644084,-500.0,0.00041095,18]
[342861347,1732188644094,-500.0,0.00041095,18]
[342861349,1732188644104,-500.0,0.00041095,18]
[342861351,1732188644114,-500.0,0.00041095,18]
[342861352,1732188644124,-500.0,0.00041095,18]
[342861354,1732188644135,-500.0,0.00041095,18]
[342861357,1732188644144,-500.0,0.00041095,18]
[342861359,1732188644154,-500.0,0.00041095,18]
[342861361,1732188644163,-2670.04,0.00041095,18]
[342861363,1732188644173,-500.0,0.00041095,18]
[342861364,1732188644182,-500.0,0.00041095,18]
[342861365,1732188644191,-500.0,0.00041095,18]
[342861366,1732188644200,-1052.51,0.00041095,18]
[342861367,1732188644209,-500.0,0.00041095,18]
[342861368,1732188644218,-500.0,0.00041095,18]
[342861369,1732188644227,-500.0,0.00041095,18]
[342861370,1732188644236,-1081.78,0.00041095,18]
[342861371,1732188644245,-584.57,0.00041095,18]
[342861373,1732188644254,-537.11,0.00041095,18]
[342861374,1732188644263,-500.0,0.00041095,18]
[342861376,1732188644273,-500.0,0.00041095,18]
[342861378,1732188644282,-500.0,0.00041095,18]
[342861380,1732188644291,-572.10065676,0.00041095,18]
[342861382,1732188644301,-500.0,0.00041095,18]
[342861384,1732188644310,-649.47,0.00041095,18]
[342861386,1732188644319,-500.0,0.00041095,18]
[342861388,1732188644328,-500.0,0.00041095,18]
[342861390,1732188644338,-500.0,0.00041095,18]
[342861391,1732188644347,-500.0,0.00041095,18]
[342861392,1732188644356,-565.86,0.00041095,18]
[342861393,1732188644366,-500.0,0.00041095,18]
[342861394,1732188644376,-500.0,0.00041095,18]
[342861395,1732188644388,-500.0,0.00041095,18]
[342861396,1732188644398,-500.0,0.00041095,18]
[342861397,1732188644407,-1693.29,0.00041095,18]
[342861398,1732188644416,-500.0,0.00041095,18]
[342861399,1732188644426,-500.0,0.00041095,18]
[342861400,1732188644435,-500.0,0.00041095,18]
[342861401,1732188644445,-1309.94,0.00041095,18]
[342861402,1732188644455,-500.0,0.00041095,18]
[342861403,1732188644464,-573.51,0.00041095,18]
[342861404,1732188644473,-2295.71,0.00041095,18]
[342861405,1732188644482,-500.0,0.00041095,18]
[342861406,1732188644492,-562.35,0.00041095,18]
[342861407,1732188644503,-682.94,0.00041095,18]
[342861408,1732188644514,-500.0,0.00041095,18]
[342861409,1732188644524,-500.0,0.00041095,18]
[342861410,1732188644534,-500.0,0.00041095,18]
[342861411,1732188644543,-500.0,0.00041095,18]
[342861412,1732188644555,-500.0,0.00041095,18]
[342861413,1732188644565,-500.0,0.00041095,18]
[342861414,1732188644575,-821.2,0.00041095,18]
[342861415,1732188644585,-500.0,0.00041095,18]
[342861416,1732188644594,-500.0,0.00041095,18]
[342861417,1732188644604,-901.27,0.00041095,18]
[342861418,1732188644613,-1891.89,0.00041095,18]
[342861419,1732188644622,-500.0,0.00041095,18]
[342861420,1732188644633,-850.13,0.00041095,18]
[342861421,1732188644643,-500.0,0.00041095,18]
[342861422,1732188644653,-519.25,0.00041095,18]
[342861423,1732188644662,-500.0,0.00041095,18]
[342861424,1732188644671,-500.0,0.00041095,18]
[342861425,1732188644680,-500.0,0.00041095,18]
[342861426,1732188644689,-500.0,0.00041095,18]
[342861427,1732188644698,-618.63,0.00041095,18]
[342861428,1732188644708,-500.0,0.00041095,18]
[342861429,1732188644718,-635.35,0.00041095,18]
[342861430,1732188644728,-500.0,0.00041095,18]
[342861431,1732188644738,-500.0,0.00041095,18]
[342861432,1732188644748,-500.0,0.00041095,18]
[342861433,1732188644758,-951.76,0.00041095,18]
[342861434,1732188644767,-1000.0,0.00041095,120]
[342861435,1732188644777,-500.0,0.00041095,18]
[342861436,1732188644786,-655.78,0.00041095,18]
[342861437,1732188644796,-500.0,0.00041095,18]
[342861438,1732188644805,-500.0,0.00041095,18]
[342861439,1732188644814,-500.0,0.00041095,18]
[342861440,1732188644824,-1438.87,0.00041095,18]
[342861441,1732188644834,-2536.6,0.00041095,18]
[342861442,1732188644843,-387.81025049,0.00041095,18]
[342861443,1732188644853,-500.0,0.00041095,18]
[342861444,1732188644863,-1126.62,0.00041095,18]
[342861445,1732188644873,-2056.11,0.00041095,18]
[342861446,1732188644882,-500.0,0.00041095,18]
[342861447,1732188644893,-500.0,0.00041095,18]
[342861448,1732188644903,-568.19,0.00041095,18]
[342861449,1732188644913,-500.0,0.00041095,18]
[342861450,1732188644922,-500.0,0.00041095,18]
[342861451,1732188644932,-500.0,0.00041095,18]
[342861452,1732188644941,-500.0,0.00041095,18]
[342861453,1732188644951,-2939.11,0.00041095,18]
[342861454,1732188644962,-500.0,0.00041095,18]
[342861455,1732188644971,-500.0,0.00041095,18]
[342861456,1732188644981,-500.0,0.00041095,18]
[342861457,1732188644992,-500.0,0.00041095,18]
[342861458,1732188645002,-500.0,0.00041095,18]
[342861459,1732188645011,-974.92,0.00041095,18]
[342861460,1732188645021,-500.0,0.00041095,18]
[342861461,1732188645031,-500.0,0.00041095,18]
[342861462,1732188645040,-946.92,0.00041095,18]
[342861463,1732188645050,-668.43,0.00041095,18]
[342861464,1732188645060,-870.63,0.00041095,18]
[342861465,1732188645070,-500.0,0.00041095,18]
[342861466,1732188645079,-500.0,0.00041095,18]
[342861467,1732188645089,-500.0,0.00041095,18]
[342861468,1732188645099,-1310.23,0.00041095,18]
[342861469,1732188645109,-500.0,0.00041095,18]
[342861470,1732188645119,-1462.06,0.00041095,18]
[342861471,1732188645128,-1420.69,0.00041095,18]
[342861472,1732188645139,-605.92,0.00041095,18]
[342861473,1732188645149,-903.04,0.00041095,18]
[342861474,1732188645159,-724.79,0.00041095,18]
[342861475,1732188645168,-500.0,0.00041095,18]
[342861476,1732188645177,-778.54,0.00041095,18]
[342861477,1732188645187,-472.0852872,0.00041095,18]
[342861478,1732188645196,-837.76,0.00041095,18]
[342861479,1732188645205,-500.0,0.00041095,18]
[342861480,1732188645214,-500.0,0.00041095,18]
[342861481,1732188645533,-500.0,0.00041095,18]
[342861482,1732188645543,-500.0,0.00041095,18]
[342861483,1732188645554,-677.4,0.00041095,18]
[342861484,1732188645563,-500.0,0.00041095,18]
[342861485,1732188645573,-500.0,0.00041095,18]
[342861486,1732188645583,-1023.01,0.00041095,18]
[342861487,1732188645595,-500.0,0.00041095,18]
[342861488,1732188645604,-500.0,0.00041095,18]
[342861489,1732188645614,-318.13416736,0.00041095,18]
[342861490,1732188645625,-500.0,0.00041095,18]
[342861491,1732188645635,-2669.21,0.00041095,18]
[342861492,1732188645645,-500.0,0.00041095,18]
[342861493,1732188645655,-1665.3,0.00041095,18]
[342861494,1732188645665,-733.07,0.00041095,18]
[342861495,1732188645674,-500.0,0.00041095,18]
[342861496,1732188645684,-500.0,0.00041095,18]
[342861497,1732188645693,-500.0,0.00041095,18]
[342861498,1732188645703,-500.0,0.00041095,18]
[342861499,1732188645712,-500.0,0.00041095,18]
[342861500,1732188645722,-500.0,0.00041095,2]
[342861501,1732188645731,-500.0,0.00041095,18]
[342861502,1732188645740,-500.0,0.00041095,18]
[342861503,1732188645749,-1253.31,0.00041095,18]
[342861504,1732188645758,-716.32,0.00041095,18]
[342861505,1732188645768,-500.0,0.00041095,18]
[342861506,1732188645777,-500.0,0.00041095,18]
[342861507,1732188645787,-922.51,0.00041095,18]
[342861508,1732188645796,-500.0,0.00041095,18]
[342861509,1732188645805,-380.1903638,0.00041095,18]
[342861510,1732188645815,-608.24,0.00041095,18]
[342861511,1732188645824,-500.0,0.00041095,18]
[342861512,1732188645834,-500.0,0.00041095,18]
[342861513,1732188645843,-500.0,0.00041095,18]
[342861514,1732188645853,-500.0,0.00041095,18]
[342861515,1732188645863,-500.0,0.00041095,18]
[342861516,1732188645872,-496.72173715,0.00041095,18]
[342861517,1732188645882,-2103.5,0.00041095,18]
[342861518,1732188645892,-500.0,0.00041095,18]
[342861519,1732188645902,-500.0,0.00041095,18]
[342861520,1732188645911,-500.0,0.00041095,18]
[342861521,1732188645920,-610.39701704,0.00041095,18]
[342861522,1732188645931,-500.0,0.00041095,18]
[342861523,1732188645941,-1013.94,0.00041095,18]
[342861524,1732188645950,-1636.02,0.00041095,18]
[342861525,1732188645960,-807.34,0.00041095,18]
[342861526,1732188645971,-587.63,0.00041095,18]
[342861527,1732188645980,-500.0,0.00041095,18]
[342861528,1732188645992,-500.0,0.00041095,18]
[342861529,1732188646002,-500.0,0.00041095,18]
[342861530,1732188646012,-1349.84,0.00041095,18]
[342861532,1732188646022,-1117.45,0.00041095,18]
[342861534,1732188646031,-696.69,0.00041095,18]
[342861536,1732188646041,-500.0,0.00041095,18]
[342861538,1732188646050,-500.0,0.00041095,18]
[342861540,1732188646060,-500.0,0.00041095,18]
[342861542,1732188646070,-505.83,0.00041095,18]
[342861543,1732188646079,-500.0,0.00041095,18]
[342861545,1732188646088,-978.07,0.00041095,18]
[342861547,1732188646098,-2078.1,0.00041095,18]
[342861548,1732188646107,-500.0,0.00041095,18]
[342861550,1732188646117,-500.0,0.00041095,18]
[342861552,1732188646127,-500.0,0.00041095,18]